[Event "Early-Titled-Tuesday-Blitz-June-18-2024"]
[Site "Chess.com"]
[Date "2024.06.18"]
[Round "3"]
[White "secrethawk1"]
[Black "Alenzer"]
[Result "1-0"]
[WhiteElo "2421"]
[BlackElo "2176"]
[TimeControl "180+1"]
[EndTime "8:30:37 PDT"]
[Termination "secrethawk1 won on time"]

1. Nf3 {[%clk 0:03:00.9]} 1... d5 {[%clk 0:02:59.5]} 2. e3 {[%clk 0:03:01.7]}
2... c5 {[%clk 0:02:59.2]} 3. c4 {[%clk 0:03:01.8]} 3... e6 {[%clk 0:02:58.3]}
4. d4 {[%clk 0:03:01.6]} 4... Nc6 {[%clk 0:02:58.1]} 5. Nc3 {[%clk 0:03:01]}
5... Nf6 {[%clk 0:02:57.9]} 6. Be2 {[%clk 0:02:59]} 6... a6 {[%clk 0:02:57.6]}
7. O-O {[%clk 0:02:58.7]} 7... dxc4 {[%clk 0:02:57.7]} 8. Bxc4 {[%clk
0:02:58.4]} 8... b5 {[%clk 0:02:58.2]} 9. Be2 {[%clk 0:02:57.7]} 9... Bb7 {[%clk
0:02:58.1]} 10. a3 {[%clk 0:02:56.6]} 10... cxd4 {[%clk 0:02:58.1]} 11. exd4
{[%clk 0:02:55.9]} 11... Bd6 {[%clk 0:02:54]} 12. Bg5 {[%clk 0:02:55.2]} 12...
h6 {[%clk 0:02:51.2]} 13. Bxf6 {[%clk 0:02:54.1]} 13... Qxf6 {[%clk 0:02:50.9]}
14. d5 {[%clk 0:02:36.9]} 14... Ne5 {[%clk 0:02:18.6]} 15. Ne4 {[%clk
0:02:23.2]} 15... Nxf3+ {[%clk 0:01:48.1]} 16. Bxf3 {[%clk 0:02:24.1]} 16... Qe5
{[%clk 0:01:41.2]} 17. Nxd6+ {[%clk 0:02:18.7]} 17... Qxd6 {[%clk 0:01:40.3]}
18. dxe6 {[%clk 0:02:16.5]} 18... Qxd1 {[%clk 0:01:38]} 19. exf7+ {[%clk
0:02:16.4]} 19... Kxf7 {[%clk 0:01:34.8]} 20. Bxd1 {[%clk 0:02:14.4]} 20... Rad8
{[%clk 0:01:30.6]} 21. Bb3+ {[%clk 0:02:13]} 21... Kf6 {[%clk 0:01:29.5]} 22.
Rad1 {[%clk 0:02:12]} 22... h5 {[%clk 0:01:21.3]} 23. f3 {[%clk 0:01:59.1]}
23... h4 {[%clk 0:01:19.7]} 24. Kf2 {[%clk 0:01:58.6]} 24... h3 {[%clk
0:01:13.9]} 25. g4 {[%clk 0:01:50.8]} 25... Rhe8 {[%clk 0:00:56.3]} 26. Kg3
{[%clk 0:01:28.8]} 26... Rxd1 {[%clk 0:00:49]} 27. Bxd1 {[%clk 0:01:14.9]} 27...
Re3 {[%clk 0:00:30.8]} 28. Kxh3 {[%clk 0:01:02.9]} 28... g5 {[%clk 0:00:29.1]}
29. Kg3 {[%clk 0:01:02.3]} 29... a5 {[%clk 0:00:23.9]} 30. h4 {[%clk 0:01:02]}
30... gxh4+ {[%clk 0:00:23.5]} 31. Kxh4 {[%clk 0:01:02.9]} 31... b4 {[%clk
0:00:22.6]} 32. axb4 {[%clk 0:01:01.6]} 32... axb4 {[%clk 0:00:22.6]} 33. g5+
{[%clk 0:00:50.6]} 33... Kf5 {[%clk 0:00:18.1]} 34. Bc2+ {[%clk 0:00:49.4]}
34... Kf4 {[%clk 0:00:18.3]} 35. Bd1 {[%clk 0:00:20]} 35... Re8 {[%clk
0:00:15.2]} 36. Kh5 {[%clk 0:00:15]} 36... Kf5 {[%clk 0:00:09.9]} 37. Bc2+
{[%clk 0:00:13.9]} 37... Kf4 {[%clk 0:00:10.3]} 38. Kh6 {[%clk 0:00:07.7]} 38...
Bd5 {[%clk 0:00:08.6]} 39. g6 {[%clk 0:00:05.7]} 39... b3 {[%clk 0:00:06.5]} 40.
Be4 {[%clk 0:00:03.1]} 40... Be6 {[%clk 0:00:02]} 41. g7 {[%clk 0:00:02.2]}
41... Bg8 {[%clk 0:00:02]} 42. Rg1 {[%clk 0:00:01.9]} 42... Re6+ {[%clk
0:00:02.4]} 43. Kh5 {[%clk 0:00:01.7]} 43... Re5+ {[%clk 0:00:02.7]} 44. Kh4
{[%clk 0:00:01.8]} 44... Re6 {[%clk 0:00:03]} 45. Rg4+ {[%clk 0:00:02.4]} 45...
Ke3 {[%clk 0:00:02.6]} 46. Kg3 {[%clk 0:00:02.8]} 46... Re5 {[%clk 0:00:02.2]}
47. Rf4 {[%clk 0:00:01.4]} 47... Rc5 {[%clk 0:00:02.6]} 48. Rg4 {[%clk
0:00:01.9]} 48... Rc8 {[%clk 0:00:02.2]} 49. Bf5 {[%clk 0:00:02.1]} 49... Rd8
{[%clk 0:00:02.6]} 50. Re4+ {[%clk 0:00:01.8]} 50... Kd2 {[%clk 0:00:01.3]} 51.
Rb4 {[%clk 0:00:01.9]} 51... Rc8 {[%clk 0:00:01]} 52. Bxc8 {[%clk 0:00:01]} 1-0

[Event "Early-Titled-Tuesday-Blitz-June-18-2024"]
[Site "Chess.com"]
[Date "2024.06.18"]
[Round "3"]
[White "crazy_but_lazy"]
[Black "Gryffindorac8"]
[Result "1-0"]
[WhiteElo "2675"]
[BlackElo "2471"]
[TimeControl "180+1"]
[EndTime "8:30:38 PDT"]
[Termination "crazy_but_lazy won by resignation"]

1. Nf3 {[%clk 0:03:00.9]} 1... Nf6 {[%clk 0:02:58.9]} 2. c4 {[%clk 0:03:00]}
2... e6 {[%clk 0:02:57.2]} 3. e3 {[%clk 0:03:00.3]} 3... d5 {[%clk 0:02:55.3]}
4. Nc3 {[%clk 0:03:00.5]} 4... c5 {[%clk 0:02:54.6]} 5. cxd5 {[%clk 0:02:55.9]}
5... exd5 {[%clk 0:02:55.5]} 6. d4 {[%clk 0:02:56.2]} 6... Nc6 {[%clk
0:02:53.1]} 7. Bb5 {[%clk 0:02:56.7]} 7... Bd6 {[%clk 0:02:47.4]} 8. dxc5 {[%clk
0:02:52.8]} 8... Bxc5 {[%clk 0:02:46.6]} 9. O-O {[%clk 0:02:53.5]} 9... O-O
{[%clk 0:02:44.8]} 10. b3 {[%clk 0:02:53.9]} 10... Bg4 {[%clk 0:02:25.8]} 11.
Be2 {[%clk 0:02:37.8]} 11... a6 {[%clk 0:02:14.1]} 12. Bb2 {[%clk 0:02:37.8]}
12... Re8 {[%clk 0:02:10.4]} 13. Rc1 {[%clk 0:02:25.1]} 13... Ba7 {[%clk
0:02:08.8]} 14. h3 {[%clk 0:02:22.4]} 14... Bh5 {[%clk 0:02:07.2]} 15. Nh4
{[%clk 0:02:22.9]} 15... Bxe2 {[%clk 0:02:03.3]} 16. Nxe2 {[%clk 0:02:22.8]}
16... Ne4 {[%clk 0:01:15.9]} 17. Nf3 {[%clk 0:02:21.7]} 17... Qd6 {[%clk
0:01:12.4]} 18. Ned4 {[%clk 0:02:20.1]} 18... Ne7 {[%clk 0:01:06.2]} 19. Qd3
{[%clk 0:02:13.3]} 19... Rad8 {[%clk 0:01:04.5]} 20. Rc2 {[%clk 0:02:12.2]}
20... Bb8 {[%clk 0:01:02.1]} 21. Rd1 {[%clk 0:02:04.6]} 21... h6 {[%clk
0:00:55.8]} 22. Ne2 {[%clk 0:01:59.8]} 22... Ng6 {[%clk 0:00:45.9]} 23. Qd4
{[%clk 0:01:46.4]} 23... Qf8 {[%clk 0:00:37.5]} 24. Nc3 {[%clk 0:01:30.6]} 24...
Ne5 {[%clk 0:00:26.9]} 25. Nxe5 {[%clk 0:01:17.6]} 25... Bxe5 {[%clk 0:00:25]}
26. Qd3 {[%clk 0:01:18]} 26... Bxc3 {[%clk 0:00:24]} 27. Bxc3 {[%clk 0:01:18.7]}
27... Qe7 {[%clk 0:00:21.5]} 28. Bd4 {[%clk 0:01:07.8]} 28... Rd7 {[%clk
0:00:20.1]} 29. Rdc1 {[%clk 0:01:07.3]} 29... Qg5 {[%clk 0:00:16.8]} 30. Rc7
{[%clk 0:00:44.4]} 30... Qe7 {[%clk 0:00:14.9]} 31. Rxd7 {[%clk 0:00:41]} 31...
Qxd7 {[%clk 0:00:15.8]} 32. Qc2 {[%clk 0:00:41.5]} 32... Qe6 {[%clk 0:00:11.2]}
33. Qc7 {[%clk 0:00:36.1]} 33... Re7 {[%clk 0:00:10.3]} 34. Qb8+ {[%clk
0:00:25.9]} 34... Kh7 {[%clk 0:00:09.2]} 35. Rc8 {[%clk 0:00:26.5]} 35... f5
{[%clk 0:00:07.2]} 36. g3 {[%clk 0:00:14.7]} 36... Kg6 {[%clk 0:00:07.2]} 37.
Rg8 {[%clk 0:00:14.3]} 37... Nf6 {[%clk 0:00:06.2]} 38. Rd8 {[%clk 0:00:10.1]}
38... Ne4 {[%clk 0:00:05.6]} 39. Rg8 {[%clk 0:00:09.2]} 39... Nf6 {[%clk
0:00:05.2]} 40. Bxf6 {[%clk 0:00:09.9]} 40... Qxf6 {[%clk 0:00:06]} 41. Rd8
{[%clk 0:00:09.6]} 41... Qa1+ {[%clk 0:00:05.5]} 42. Kg2 {[%clk 0:00:10.2]}
42... Qf6 {[%clk 0:00:05.2]} 43. Rd6 {[%clk 0:00:09.9]} 43... Re6 {[%clk
0:00:05]} 44. Rxe6 {[%clk 0:00:09]} 44... Qxe6 {[%clk 0:00:05.9]} 45. Qxb7
{[%clk 0:00:09.7]} 45... Qe4+ {[%clk 0:00:05.4]} 46. Kg1 {[%clk 0:00:10.4]}
46... Qf3 {[%clk 0:00:05.9]} 47. Qc6+ {[%clk 0:00:09.9]} 47... Kh7 {[%clk
0:00:06]} 48. Qc1 {[%clk 0:00:09.9]} 48... Qe4 {[%clk 0:00:05.7]} 49. Qd2 {[%clk
0:00:09.8]} 49... h5 {[%clk 0:00:05.3]} 50. h4 {[%clk 0:00:10.2]} 50... Qf3
{[%clk 0:00:05]} 51. Qd4 {[%clk 0:00:09.3]} 51... Qg4 {[%clk 0:00:03.9]} 52.
Qxg4 {[%clk 0:00:08.9]} 52... hxg4 {[%clk 0:00:03.8]} 53. Kf1 {[%clk 0:00:08.8]}
53... Kg6 {[%clk 0:00:04.5]} 54. Ke2 {[%clk 0:00:09.5]} 54... Kf6 {[%clk
0:00:05.3]} 55. Kd3 {[%clk 0:00:10.2]} 55... Ke6 {[%clk 0:00:06]} 56. Kd4 {[%clk
0:00:10.6]} 56... Kd6 {[%clk 0:00:06.7]} 57. b4 {[%clk 0:00:11.2]} 57... g6
{[%clk 0:00:07.1]} 58. a4 {[%clk 0:00:11.6]} 58... Kc6 {[%clk 0:00:07.6]} 59.
b5+ {[%clk 0:00:10.9]} 59... axb5 {[%clk 0:00:07.7]} 60. axb5+ {[%clk
0:00:11.8]} 60... Kxb5 {[%clk 0:00:08.2]} 61. Kxd5 {[%clk 0:00:12.7]} 61... Kb4
{[%clk 0:00:08.5]} 62. Kd4 {[%clk 0:00:12.9]} 62... Kb3 {[%clk 0:00:08.6]} 63.
e4 {[%clk 0:00:12.2]} 63... fxe4 {[%clk 0:00:07.3]} 64. Kxe4 {[%clk 0:00:12.6]}
64... Kc3 {[%clk 0:00:07.9]} 65. Kf4 {[%clk 0:00:13.1]} 65... Kd3 {[%clk
0:00:07.3]} 66. Kxg4 {[%clk 0:00:13.6]} 1-0

[Event "Early-Titled-Tuesday-Blitz-June-18-2024"]
[Site "Chess.com"]
[Date "2024.06.18"]
[Round "3"]
[White "Meri-Arabidze"]
[Black "KinKaiser"]
[Result "1-0"]
[WhiteElo "2667"]
[BlackElo "2463"]
[TimeControl "180+1"]
[EndTime "8:30:38 PDT"]
[Termination "Meri-Arabidze won by resignation"]

1. Nf3 {[%clk 0:03:00.9]} 1... Nf6 {[%clk 0:02:53.6]} 2. c4 {[%clk 0:03:01.3]}
2... c6 {[%clk 0:02:53]} 3. g3 {[%clk 0:03:01.2]} 3... d5 {[%clk 0:02:53.1]} 4.
Bg2 {[%clk 0:03:01.8]} 4... g6 {[%clk 0:02:52.8]} 5. O-O {[%clk 0:03:00.7]} 5...
Bg7 {[%clk 0:02:53.4]} 6. d4 {[%clk 0:02:58.7]} 6... O-O {[%clk 0:02:50.4]} 7.
a4 {[%clk 0:02:58.6]} 7... Nbd7 {[%clk 0:02:44.3]} 8. a5 {[%clk 0:02:54.6]} 8...
Ne4 {[%clk 0:02:40.4]} 9. Nc3 {[%clk 0:02:46.3]} 9... Nxc3 {[%clk 0:02:39]} 10.
bxc3 {[%clk 0:02:47.2]} 10... Nf6 {[%clk 0:02:38.2]} 11. Ne5 {[%clk 0:02:41.2]}
11... Ng4 {[%clk 0:02:27.1]} 12. Nxg4 {[%clk 0:02:25]} 12... Bxg4 {[%clk
0:02:28]} 13. h3 {[%clk 0:02:25.5]} 13... Be6 {[%clk 0:02:26.1]} 14. c5 {[%clk
0:02:22.5]} 14... b6 {[%clk 0:02:22.1]} 15. Ba3 {[%clk 0:02:01]} 15... b5 {[%clk
0:02:05.5]} 16. Bc1 {[%clk 0:02:01]} 16... a6 {[%clk 0:02:04.6]} 17. g4 {[%clk
0:01:36.8]} 17... Bd7 {[%clk 0:02:00.9]} 18. e4 {[%clk 0:01:35.9]} 18... e6
{[%clk 0:01:53.7]} 19. e5 {[%clk 0:01:34.2]} 19... f6 {[%clk 0:01:45.7]} 20.
exf6 {[%clk 0:01:27.3]} 20... Qxf6 {[%clk 0:01:46.6]} 21. f4 {[%clk 0:01:27.2]}
21... Rae8 {[%clk 0:01:41.8]} 22. Ra2 {[%clk 0:01:21.5]} 22... h6 {[%clk
0:01:39.9]} 23. Raf2 {[%clk 0:01:16.7]} 23... Qd8 {[%clk 0:01:38.6]} 24. Ra2
{[%clk 0:01:12.3]} 24... Kh7 {[%clk 0:01:27.7]} 25. Be3 {[%clk 0:01:11.7]} 25...
Rf7 {[%clk 0:01:23.8]} 26. Qd2 {[%clk 0:01:11.7]} 26... Ref8 {[%clk 0:01:23.7]}
27. Rf2 {[%clk 0:01:11.2]} 27... Qc7 {[%clk 0:01:11.3]} 28. Bf1 {[%clk
0:01:10.8]} 28... Rf6 {[%clk 0:01:04.3]} 29. Bd3 {[%clk 0:01:09.3]} 29... Be8
{[%clk 0:01:03.6]} 30. Qd1 {[%clk 0:01:01.4]} 30... R8f7 {[%clk 0:01:01.6]} 31.
g5 {[%clk 0:00:52.3]} 31... Rf5 {[%clk 0:00:54.6]} 32. Bxf5 {[%clk 0:00:49.6]}
32... Rxf5 {[%clk 0:00:52.3]} 33. h4 {[%clk 0:00:49.6]} 33... h5 {[%clk
0:00:51.5]} 34. Bc1 {[%clk 0:00:43.6]} 34... Bf8 {[%clk 0:00:51.5]} 35. Rfe2
{[%clk 0:00:40.7]} 35... Bf7 {[%clk 0:00:48.8]} 36. Qe1 {[%clk 0:00:39.4]} 36...
Qd7 {[%clk 0:00:47.6]} 37. Re5 {[%clk 0:00:36.5]} 37... Bg7 {[%clk 0:00:29.5]}
38. Rxf5 {[%clk 0:00:35.2]} 38... gxf5 {[%clk 0:00:29.7]} 39. Re2 {[%clk
0:00:24.3]} 39... Kg6 {[%clk 0:00:29.9]} 40. Be3 {[%clk 0:00:21]} 40... Qc8
{[%clk 0:00:30.3]} 41. Kf2 {[%clk 0:00:19.6]} 41... Qd7 {[%clk 0:00:30.6]} 42.
Kg3 {[%clk 0:00:19.7]} 42... Qc8 {[%clk 0:00:30.6]} 43. Rb2 {[%clk 0:00:19.1]}
43... Qd7 {[%clk 0:00:30.5]} 44. Bc1 {[%clk 0:00:10.6]} 44... Qd8 {[%clk
0:00:30.2]} 45. Ra2 {[%clk 0:00:10]} 45... Qd7 {[%clk 0:00:30.2]} 46. Re2 {[%clk
0:00:09.8]} 46... Qc8 {[%clk 0:00:29.9]} 47. Bb2 {[%clk 0:00:09.7]} 47... Qd7
{[%clk 0:00:30.3]} 48. Qd2 {[%clk 0:00:09.5]} 48... Qc8 {[%clk 0:00:30.5]} 49.
c4 {[%clk 0:00:07.7]} 49... dxc4 {[%clk 0:00:29.5]} 50. d5 {[%clk 0:00:08]}
50... cxd5 {[%clk 0:00:25.4]} 51. Bxg7 {[%clk 0:00:07.4]} 51... Kxg7 {[%clk
0:00:25.9]} 52. Qd4+ {[%clk 0:00:08.1]} 52... Kg8 {[%clk 0:00:23.9]} 53. Qf6
{[%clk 0:00:08.4]} 53... Qe8 {[%clk 0:00:08.5]} 54. g6 {[%clk 0:00:08.5]} 54...
Bxg6 {[%clk 0:00:08.9]} 55. Rxe6 {[%clk 0:00:08.8]} 55... Qf7 {[%clk 0:00:05.1]}
56. Qxg6+ {[%clk 0:00:07]} 56... Kf8 {[%clk 0:00:05.2]} 57. Qh6+ {[%clk
0:00:06]} 57... Kg8 {[%clk 0:00:04.8]} 58. Rg6+ {[%clk 0:00:05.6]} 1-0

[Event "Early-Titled-Tuesday-Blitz-June-18-2024"]
[Site "Chess.com"]
[Date "2024.06.18"]
[Round "3"]
[White "Revan_2002"]
[Black "Chopper1905"]
[Result "1-0"]
[WhiteElo "2733"]
[BlackElo "2918"]
[TimeControl "180+1"]
[EndTime "8:30:39 PDT"]
[Termination "Revan_2002 won by checkmate"]

1. d4 {[%clk 0:03:00.9]} 1... Nf6 {[%clk 0:02:58.2]} 2. c4 {[%clk 0:02:59.5]}
2... e6 {[%clk 0:02:55.8]} 3. Nf3 {[%clk 0:02:58]} 3... b6 {[%clk 0:02:56.2]} 4.
a3 {[%clk 0:02:51.4]} 4... Bb7 {[%clk 0:02:54.1]} 5. Nc3 {[%clk 0:02:51.1]} 5...
d5 {[%clk 0:02:51.3]} 6. cxd5 {[%clk 0:02:52]} 6... Nxd5 {[%clk 0:02:51.7]} 7.
Qc2 {[%clk 0:02:52.4]} 7... Nd7 {[%clk 0:02:48]} 8. e4 {[%clk 0:02:51.3]} 8...
Nxc3 {[%clk 0:02:48.1]} 9. bxc3 {[%clk 0:02:51.9]} 9... Be7 {[%clk 0:02:46.9]}
10. Bd3 {[%clk 0:02:51]} 10... c5 {[%clk 0:02:46.7]} 11. O-O {[%clk 0:02:48.1]}
11... Qc7 {[%clk 0:02:45.2]} 12. Qe2 {[%clk 0:02:43.3]} 12... O-O {[%clk
0:02:42.6]} 13. Bb2 {[%clk 0:02:42.4]} 13... Rac8 {[%clk 0:02:38.5]} 14. Qe3
{[%clk 0:02:34.9]} 14... Rfd8 {[%clk 0:02:36]} 15. Rad1 {[%clk 0:02:33.6]} 15...
Bd6 {[%clk 0:02:02.5]} 16. e5 {[%clk 0:01:30.7]} 16... Be7 {[%clk 0:02:02.3]}
17. Ng5 {[%clk 0:01:23.1]} 17... Nf8 {[%clk 0:01:50.4]} 18. f4 {[%clk 0:01:18]}
18... f5 {[%clk 0:01:06]} 19. exf6 {[%clk 0:00:59.8]} 19... Bxf6 {[%clk
0:01:06]} 20. Qh3 {[%clk 0:00:38]} 20... h6 {[%clk 0:00:27.8]} 21. Nxe6 {[%clk
0:00:37.7]} 21... Nxe6 {[%clk 0:00:28.7]} 22. Qxe6+ {[%clk 0:00:37.3]} 22... Qf7
{[%clk 0:00:29.1]} 23. Bc4 {[%clk 0:00:28.8]} 23... Qxe6 {[%clk 0:00:19.8]} 24.
Bxe6+ {[%clk 0:00:27.6]} 24... Kf8 {[%clk 0:00:20.7]} 25. Bxc8 {[%clk
0:00:28.3]} 25... Rxc8 {[%clk 0:00:21.6]} 26. a4 {[%clk 0:00:14.8]} 26... cxd4
{[%clk 0:00:13.6]} 27. cxd4 {[%clk 0:00:14.7]} 27... Rc4 {[%clk 0:00:14.3]} 28.
a5 {[%clk 0:00:09.9]} 28... bxa5 {[%clk 0:00:14.1]} 29. Ba3+ {[%clk 0:00:10.2]}
29... Ke8 {[%clk 0:00:13.8]} 30. Bc5 {[%clk 0:00:07.7]} 30... a4 {[%clk
0:00:12.5]} 31. Rfe1+ {[%clk 0:00:07.4]} 31... Kd7 {[%clk 0:00:12.5]} 32. Rc1
{[%clk 0:00:07.9]} 32... Rxc1 {[%clk 0:00:07.3]} 33. Rxc1 {[%clk 0:00:07.5]}
33... Bd5 {[%clk 0:00:07.9]} 34. Ra1 {[%clk 0:00:04.5]} 34... Bb3 {[%clk
0:00:08.1]} 35. Bxa7 {[%clk 0:00:05]} 35... Kc6 {[%clk 0:00:06.9]} 36. Kf2
{[%clk 0:00:04.7]} 36... Kd5 {[%clk 0:00:06.2]} 37. Ke3 {[%clk 0:00:05.1]} 37...
Kc4 {[%clk 0:00:05.9]} 38. g4 {[%clk 0:00:03.3]} 38... Be7 {[%clk 0:00:04.9]}
39. Bc5 {[%clk 0:00:03.1]} 39... Bd8 {[%clk 0:00:03.7]} 40. Rc1+ {[%clk
0:00:02.8]} 40... Kd5 {[%clk 0:00:03.9]} 41. Ba3 {[%clk 0:00:03.4]} 41... Bb6
{[%clk 0:00:03.5]} 42. Bc5 {[%clk 0:00:03.9]} 42... Ba5 {[%clk 0:00:04]} 43. h4
{[%clk 0:00:03.7]} 43... Bc4 {[%clk 0:00:03]} 44. g5 {[%clk 0:00:03.8]} 44... h5
{[%clk 0:00:03.1]} 45. f5 {[%clk 0:00:03.8]} 45... Bc7 {[%clk 0:00:03.1]} 46.
Ra1 {[%clk 0:00:03.9]} 46... Bb3 {[%clk 0:00:03.3]} 47. f6 {[%clk 0:00:04.4]}
47... g6 {[%clk 0:00:03.9]} 48. f7 {[%clk 0:00:04.3]} 48... Kc4 {[%clk
0:00:03.1]} 49. f8=Q {[%clk 0:00:04.2]} 49... Kc3 {[%clk 0:00:04]} 50. Qf2
{[%clk 0:00:04.5]} 50... Ba5 {[%clk 0:00:03.2]} 51. Qd2+ {[%clk 0:00:04.9]}
51... Kc4 {[%clk 0:00:04.1]} 52. Qxa5 {[%clk 0:00:05.1]} 52... Kd5 {[%clk
0:00:04.8]} 53. Qb4 {[%clk 0:00:05.4]} 53... Ke6 {[%clk 0:00:05.7]} 54. Rxa4
{[%clk 0:00:05.6]} 54... Kf5 {[%clk 0:00:06.6]} 55. Qb8 {[%clk 0:00:04.5]} 55...
Kg4 {[%clk 0:00:07.5]} 56. Qf4+ {[%clk 0:00:04.9]} 56... Kh3 {[%clk 0:00:08.3]}
57. Ra3 {[%clk 0:00:05.1]} 57... Bd1 {[%clk 0:00:08.6]} 58. Kf2+ {[%clk
0:00:05.4]} 58... Bb3 {[%clk 0:00:09.3]} 59. Rxb3# {[%clk 0:00:05.6]} 1-0

[Event "Early-Titled-Tuesday-Blitz-June-18-2024"]
[Site "Chess.com"]
[Date "2024.06.18"]
[Round "3"]
[White "Adrian-thorsen"]
[Black "N_Mullodzhanov"]
[Result "1-0"]
[WhiteElo "2328"]
[BlackElo "2559"]
[TimeControl "180+1"]
[EndTime "8:30:41 PDT"]
[Termination "Adrian-thorsen won by resignation"]

1. e4 {[%clk 0:03:00.9]} 1... c5 {[%clk 0:03:00]} 2. Nf3 {[%clk 0:03:00.2]} 2...
d6 {[%clk 0:02:59.7]} 3. c3 {[%clk 0:03:00.2]} 3... Nf6 {[%clk 0:02:58.7]} 4. h3
{[%clk 0:03:00.1]} 4... Nxe4 {[%clk 0:02:58.7]} 5. Qa4+ {[%clk 0:03:00]} 5...
Nc6 {[%clk 0:02:58.3]} 6. Qxe4 {[%clk 0:03:00.1]} 6... g6 {[%clk 0:02:57.9]} 7.
Bb5 {[%clk 0:02:59.8]} 7... Bd7 {[%clk 0:02:57.7]} 8. d4 {[%clk 0:03:00.3]} 8...
a6 {[%clk 0:02:56.3]} 9. Bxc6 {[%clk 0:03:00]} 9... Bxc6 {[%clk 0:02:57.2]} 10.
d5 {[%clk 0:03:00.4]} 10... Bb5 {[%clk 0:02:56]} 11. c4 {[%clk 0:03:00.5]} 11...
Bd7 {[%clk 0:02:56.1]} 12. O-O {[%clk 0:03:01]} 12... Bg7 {[%clk 0:02:56.3]} 13.
Nc3 {[%clk 0:03:01]} 13... O-O {[%clk 0:02:56.1]} 14. Bf4 {[%clk 0:02:59.7]}
14... Bf5 {[%clk 0:02:49.8]} 15. Qe2 {[%clk 0:02:58.3]} 15... Re8 {[%clk
0:02:43.3]} 16. Rad1 {[%clk 0:02:54.4]} 16... Rb8 {[%clk 0:02:39.9]} 17. a4
{[%clk 0:02:51.2]} 17... e5 {[%clk 0:02:36.7]} 18. dxe6 {[%clk 0:02:50.9]} 18...
Rxe6 {[%clk 0:02:36.1]} 19. Qd2 {[%clk 0:02:49.5]} 19... h5 {[%clk 0:02:26.2]}
20. Ng5 {[%clk 0:02:42.4]} 20... Re8 {[%clk 0:02:20.8]} 21. Qxd6 {[%clk
0:02:40.9]} 21... Qa5 {[%clk 0:02:15.7]} 22. Qc7 {[%clk 0:02:28.2]} 22... Qxc7
{[%clk 0:02:09]} 23. Bxc7 {[%clk 0:02:29.1]} 23... Rbc8 {[%clk 0:02:08.6]} 24.
Bb6 {[%clk 0:02:22.3]} 24... Bxc3 {[%clk 0:02:06.9]} 25. bxc3 {[%clk 0:02:22.4]}
25... Bc2 {[%clk 0:02:07]} 26. Rd7 {[%clk 0:02:19.8]} 26... f6 {[%clk
0:02:07.2]} 27. Nf7 {[%clk 0:02:12.7]} 27... Bxa4 {[%clk 0:02:02.9]} 28. Rxb7
{[%clk 0:01:20]} 28... Rb8 {[%clk 0:02:01.3]} 29. Nd6 {[%clk 0:01:19.2]} 29...
Rxb7 {[%clk 0:01:58.4]} 30. Nxb7 {[%clk 0:01:20.1]} 30... Bb3 {[%clk 0:01:17.6]}
31. Nd6 {[%clk 0:01:06.7]} 31... Re5 {[%clk 0:01:10.2]} 32. f4 {[%clk
0:00:47.8]} 32... Re3 {[%clk 0:01:04.7]} 33. Rf3 {[%clk 0:00:27.5]} 33... Re1+
{[%clk 0:00:57.5]} 34. Kf2 {[%clk 0:00:27.4]} 34... Ra1 {[%clk 0:00:55.3]} 35.
Bxc5 {[%clk 0:00:26.9]} 35... a5 {[%clk 0:00:55.4]} 36. Re3 {[%clk 0:00:21.3]}
36... a4 {[%clk 0:00:55.4]} 37. Nb5 {[%clk 0:00:15.4]} 37... Bxc4 {[%clk
0:00:51.2]} 38. Na3 {[%clk 0:00:15.6]} 38... Ra2+ {[%clk 0:00:47.3]} 39. Kg3
{[%clk 0:00:15.3]} 39... Bd5 {[%clk 0:00:47.1]} 40. c4 {[%clk 0:00:11.6]} 40...
Rxg2+ {[%clk 0:00:44.5]} 41. Kh4 {[%clk 0:00:12.2]} 41... Bf7 {[%clk 0:00:26.5]}
42. Rg3 {[%clk 0:00:07.8]} 42... Re2 {[%clk 0:00:19.3]} 43. Bd4 {[%clk
0:00:06.4]} 43... Kg7 {[%clk 0:00:17.6]} 44. Bc3 {[%clk 0:00:05.7]} 44... Re4
{[%clk 0:00:16.7]} 45. Rf3 {[%clk 0:00:05.8]} 45... Bxc4 {[%clk 0:00:14.4]} 46.
Nxc4 {[%clk 0:00:06.7]} 46... Rxc4 {[%clk 0:00:14.7]} 47. Kg3 {[%clk 0:00:07.4]}
47... g5 {[%clk 0:00:14.6]} 48. fxg5 {[%clk 0:00:07.5]} 48... h4+ {[%clk
0:00:14.1]} 49. Kf2 {[%clk 0:00:07.1]} 49... a3 {[%clk 0:00:14.6]} 50. Bxf6+
{[%clk 0:00:07.2]} 50... Kg6 {[%clk 0:00:15.2]} 51. Rxa3 {[%clk 0:00:07.8]}
51... Rc2+ {[%clk 0:00:15.9]} 52. Kf3 {[%clk 0:00:07.9]} 52... Rh2 {[%clk
0:00:16.2]} 53. Kg4 {[%clk 0:00:08.2]} 53... Rc2 {[%clk 0:00:16.3]} 54. Kxh4
{[%clk 0:00:08.3]} 54... Rc4+ {[%clk 0:00:16.6]} 55. Kg3 {[%clk 0:00:08.9]}
55... Rc6 {[%clk 0:00:16.9]} 56. Rf3 {[%clk 0:00:09.2]} 56... Rc7 {[%clk
0:00:17.4]} 57. h4 {[%clk 0:00:09.7]} 57... Rh7 {[%clk 0:00:17.1]} 58. Be5
{[%clk 0:00:09.4]} 58... Kh5 {[%clk 0:00:15.8]} 59. Rf6 {[%clk 0:00:09.3]} 59...
Rh8 {[%clk 0:00:15.9]} 60. Bd4 {[%clk 0:00:07.6]} 60... Rh7 {[%clk 0:00:14.1]}
61. Re6 {[%clk 0:00:07.5]} 61... Rh8 {[%clk 0:00:14.3]} 62. Rh6+ {[%clk
0:00:05.1]} 62... Rxh6 {[%clk 0:00:13.5]} 63. gxh6 {[%clk 0:00:06]} 63... Kg6
{[%clk 0:00:14.4]} 64. Kg4 {[%clk 0:00:06.4]} 64... Kh7 {[%clk 0:00:14.9]} 65.
Kh5 {[%clk 0:00:06.6]} 65... Kg8 {[%clk 0:00:15.1]} 66. Kg6 {[%clk 0:00:07]}
66... Kf8 {[%clk 0:00:15.8]} 67. h7 {[%clk 0:00:07.4]} 67... Ke7 {[%clk
0:00:16.7]} 68. h8=Q {[%clk 0:00:08]} 68... Ke6 {[%clk 0:00:17.6]} 69. Qe5+
{[%clk 0:00:08.6]} 69... Kd7 {[%clk 0:00:17.8]} 70. Qf6 {[%clk 0:00:09.1]} 1-0